bitfinex/quotes_BTCUSD_20260103
["timestamp","ask_amount","ask_price","bid_price","bid_amount"]
[1767411152114,0.01108377,90222.0,90217.0,0.01108438]
[1767411152314,0.01108389,90221.0,90217.0,0.04942862]
[1767411152497,0.01108401,90220.0,90217.0,0.04942862]
[1767411152721,0.01108377,90222.0,90217.0,0.04942862]
[1767411153149,0.01108389,90221.0,90217.0,0.04942862]
[1767411153312,0.01108377,90222.0,90217.0,0.060513]
[1767411153711,0.01108377,90222.0,90217.0,0.04942862]
[1767411154016,0.01108377,90222.0,90217.0,0.060513]
[1767411154175,0.01108377,90222.0,90217.0,0.04942862]
[1767411154390,0.01108377,90222.0,90217.0,0.060513]
[1767411154683,0.01108401,90220.0,90217.0,0.04942862]
[1767411158530,0.06650455,90220.0,90217.0,0.04842962]
[1767411159091,0.01108401,90220.0,90217.0,0.04842962]
[1767411160484,0.01108389,90221.0,90217.0,0.04842962]
[1767411160769,0.01108389,90221.0,90215.0,0.01108463]
[1767411160970,0.01108413,90219.0,90215.0,0.04942862]
[1767411161126,0.01108401,90220.0,90215.0,0.06051325]
[1767411161464,0.01108401,90220.0,90215.0,0.04942862]
[1767411161663,0.01108413,90219.0,90215.0,0.04942862]
[1767411161865,0.01108413,90219.0,90214.0,0.01108475]
[1767411161866,0.01108401,90220.0,90219.0,0.04942862]
[1767411162466,0.01108401,90220.0,90215.0,0.01108463]
[1767411162677,0.01108413,90219.0,90214.0,0.01108475]
[1767411162899,0.01108401,90220.0,90215.0,0.01108463]
[1767411163052,0.01108401,90220.0,90215.0,0.04942862]
[1767411163429,0.01108401,90220.0,90215.0,0.06051325]
[1767411163631,0.01108413,90219.0,90215.0,0.04942862]
[1767411164268,0.01108401,90220.0,90215.0,0.06051325]
[1767411164466,0.01108389,90221.0,90215.0,0.06051325]
[1767411164668,0.0110425,90221.0,90216.0,0.04942862]
[1767411164870,0.01108401,90220.0,90216.0,0.04942862]
[1767411165449,0.0110425,90221.0,90216.0,0.04942862]
[1767411166086,0.0110425,90221.0,90216.0,0.06051312]
[1767411166386,0.0110425,90221.0,90216.0,0.04942862]
[1767411166950,0.01108401,90220.0,90216.0,0.04942862]
[1767411167168,0.01108413,90219.0,90216.0,0.04942862]
[1767411167368,0.01108364,90223.0,90216.0,0.04942862]
[1767411167649,0.01108401,90220.0,90216.0,0.04942862]
[1767411169680,0.01108389,90221.0,90216.0,0.06051312]
[1767411170260,0.06650337,90221.0,90216.0,0.04942862]
[1767411170402,0.01108401,90220.0,90216.0,0.04942862]
[1767411172553,0.01108413,90219.0,90216.0,0.04942862]
[1767411172764,0.01108401,90220.0,90216.0,0.04942862]
[1767411174625,0.06650374,90221.0,90216.0,0.04942862]
[1767411175527,0.01108389,90221.0,90216.0,0.06051312]
[1767411176525,0.01108401,90220.0,90216.0,0.04942862]
[1767411177938,0.01108389,90221.0,90216.0,0.06051312]
[1767411178952,0.01108401,90220.0,90216.0,0.04942862]
[1767411179130,0.01108413,90219.0,90216.0,0.04942862]
[1767411179335,0.01108389,90221.0,90216.0,0.06051312]
[1767411179535,0.01108401,90220.0,90216.0,0.04942862]
[1767411181026,0.01108377,90222.0,90216.0,0.04942862]
[1767411181159,0.01108389,90221.0,90216.0,0.06051312]
[1767411181897,0.01108389,90221.0,90216.0,0.04942862]
[1767411182063,0.01108389,90221.0,90216.0,0.06051312]
[1767411182259,0.01108389,90221.0,90216.0,0.04942862]
[1767411182972,0.01108401,90220.0,90216.0,0.04942862]
[1767411183830,0.01108487,90213.0,90205.0,0.01108585]
[1767411184003,0.01108561,90207.0,90199.0,0.06667069]
[1767411184208,0.01108536,90209.0,90201.0,0.01108635]
[1767411184412,0.01108561,90207.0,90201.0,0.01108635]
[1767411184805,0.01108573,90206.0,90200.0,0.01108647]
[1767411185042,3.27e-05,90206.0,90201.0,0.01108635]
[1767411185479,3.27e-05,90206.0,90200.0,0.01108647]
[1767411185864,3.27e-05,90206.0,90201.0,0.01108635]
[1767411186211,3.27e-05,90206.0,90202.0,0.01108622]
[1767411186433,3.27e-05,90206.0,90201.0,0.01108635]
[1767411186634,0.01108598,90204.0,90199.0,0.0001516]
[1767411186837,0.01108622,90202.0,90199.0,0.0001516]
[1767411187017,0.01108598,90204.0,90199.0,0.01123819]
[1767411187405,0.01108585,90205.0,90200.0,0.01108647]
[1767411187830,0.01108598,90204.0,90199.0,0.01123819]
[1767411188042,3.27e-05,90206.0,90204.0,0.000999]
[1767411188243,3.27e-05,90206.0,90204.0,0.05642849]
[1767411188449,3.27e-05,90206.0,90204.0,0.05542949]
[1767411189464,0.05542482,90213.0,90204.0,0.05542949]
[1767411189465,0.05542223,90217.0,90208.0,0.01098551]
[1767411189666,0.13069287,90218.0,90208.0,0.00010811]
[1767411189667,0.01108499,90212.0,90208.0,0.00010811]
[1767411189843,0.01108487,90213.0,90208.0,0.00010811]
[1767411190043,0.01108512,90211.0,90208.0,0.00010811]
[1767411191830,0.01108499,90212.0,90208.0,0.00010811]
[1767411192125,0.01108512,90211.0,90208.0,0.00010811]
[1767411192326,0.01104207,90211.0,90208.0,0.00010811]
[1767411193271,0.01104207,90211.0,90206.0,0.00654498]
[1767411193444,0.01012797,90212.0,90206.0,0.00654498]
[1767411193605,0.01108512,90211.0,90206.0,0.00654498]
[1767411195012,0.01012797,90212.0,90206.0,0.05560123]
[1767411195215,0.01108,90211.0,90206.0,0.05560123]
[1767411195757,0.02216512,90211.0,90206.0,0.00654498]
[1767411196405,0.01108,90211.0,90207.0,0.01108561]
[1767411196608,0.01103702,90211.0,90207.0,0.01108561]
[1767411197306,0.0109948,90211.0,90206.0,0.00654498]
[1767411197752,0.0211643,90211.0,90206.0,0.00654498]
[1767411197988,0.01007918,90211.0,90206.0,0.00654498]
[1767411198169,0.05542391,90214.0,90207.0,0.01108561]
[1767411198401,0.01108,90213.0,90211.0,0.000999]
[1767411198579,0.01108,90213.0,90210.0,0.01108524]
[1767411199394,0.01108,90213.0,90209.0,0.01108536]
[1767411200664,0.01108,90213.0,90210.0,0.01108524]
[1767411201302,0.01108463,90215.0,90209.0,0.01108536]
[1767411201501,0.01108487,90213.0,90208.0,0.01108549]
[1767411201704,0.01108487,90213.0,90207.0,0.01108561]
[1767411201971,0.01108499,90212.0,90207.0,0.06014186]
[1767411202518,0.01108487,90213.0,90208.0,0.01108549]
[1767411202678,0.01108512,90211.0,90206.0,0.01108573]
[1767411203025,0.01108499,90212.0,90206.0,0.01108573]
[1767411203791,0.01108512,90211.0,90206.0,0.01108573]
[1767411204420,0.01108499,90212.0,90206.0,0.01108573]
[1767411205295,0.01108512,90211.0,90206.0,0.01108573]
[1767411206071,0.01108524,90210.0,90204.0,0.01108598]
[1767411206275,0.01108512,90211.0,90205.0,0.01108585]
[1767411207340,0.01108512,90211.0,90204.0,0.06014223]
[1767411207543,0.01108524,90210.0,90205.0,0.01108585]
[1767411209395,0.01108524,90210.0,90204.0,0.04905625]
[1767411209396,0.01108524,90210.0,90204.0,0.06014223]
[1767411209611,0.01108524,90210.0,90205.0,0.01108585]
[1767411210407,0.01108536,90209.0,90200.0,0.06651853]
[1767411210611,0.06651792,90202.0,90198.0,0.01108]
[1767411210775,0.01104269,90202.0,90198.0,0.01108]
[1767411211293,0.0110861,90203.0,90198.0,0.02216672]
[1767411211493,0.01108561,90207.0,90200.0,0.01108647]
[1767411211662,0.01108573,90206.0,90203.0,0.000999]
[1767411212175,0.01108573,90206.0,90201.0,0.01108635]
[1767411212376,0.01108499,90212.0,90201.0,0.01108635]
[1767411212572,0.01108512,90211.0,90204.0,0.01108598]
[1767411212814,0.01108524,90210.0,90204.0,0.01108598]
[1767411213014,0.01108536,90209.0,90204.0,0.01108598]
[1767411213512,0.01108536,90209.0,90203.0,0.0110861]
[1767411213676,0.01108549,90208.0,90203.0,0.05864309]
[1767411213878,0.01108549,90208.0,90203.0,0.04755699]
[1767411214078,0.01108573,90206.0,90200.0,0.01108647]
[1767411214297,0.01108573,90206.0,90201.0,0.01108635]
[1767411214534,0.01108573,90206.0,90200.0,0.01108647]
[1767411214732,0.01108585,90205.0,90200.0,0.01108647]
[1767411214879,0.01108573,90206.0,90200.0,0.01108647]
[1767411215278,0.01108585,90205.0,90200.0,0.01108647]
[1767411215538,0.01108573,90206.0,90200.0,0.01108647]
[1767411215692,0.01108561,90207.0,90200.0,0.01108647]
[1767411215894,0.01108549,90208.0,90201.0,0.06651804]
[1767411216279,0.01108549,90208.0,90201.0,0.01108635]
[1767411216485,0.01108561,90207.0,90202.0,0.01108622]
[1767411216924,0.01108561,90207.0,90201.0,0.01108635]
[1767411217137,0.01108573,90206.0,90201.0,0.01108635]
[1767411218313,0.01108561,90207.0,90201.0,0.01108635]
[1767411218552,0.06651332,90208.0,90201.0,0.01108635]
[1767411218553,0.01108549,90208.0,90201.0,0.06651756]
[1767411218696,0.01108549,90208.0,90203.0,0.0110861]
[1767411218902,0.01108549,90208.0,90202.0,0.01108622]
[1767411219339,0.01108524,90210.0,90204.0,0.01108598]
[1767411220310,0.01108512,90211.0,90205.0,0.01108585]
[1767411220513,0.01108512,90211.0,90204.0,0.01108598]
[1767411220791,0.01108512,90211.0,90206.0,0.01108573]
[1767411220988,0.01108524,90210.0,90205.0,0.01108585]
[1767411221187,0.01108499,90212.0,90206.0,0.01108573]
[1767411221513,0.01108487,90213.0,90210.0,0.000999]
[1767411221965,0.01108487,90213.0,90207.0,0.01108561]
[1767411221966,0.01108499,90212.0,90207.0,0.01108561]
[1767411222375,0.01108487,90213.0,90207.0,0.01108561]
[1767411222995,0.01108487,90213.0,90208.0,0.01108549]
[1767411223341,0.01108487,90213.0,90207.0,0.01108561]
[1767411223548,0.01108499,90212.0,90207.0,0.01108561]
[1767411223746,0.01108487,90213.0,90208.0,0.01108549]
[1767411224580,0.01108487,90213.0,90207.0,0.01108561]
[1767411224786,0.01108499,90212.0,90207.0,0.01108561]
[1767411225223,0.01108512,90211.0,90206.0,0.01108573]
[1767411226084,0.01108499,90212.0,90207.0,0.01108561]
[1767411226285,0.01108499,90212.0,90206.0,0.01108573]
[1767411226466,0.01108499,90212.0,90207.0,0.01108561]
[1767411226668,0.01108499,90212.0,90206.0,0.01108573]
[1767411226669,0.01108512,90211.0,90206.0,0.01108573]
[1767411227310,0.01108499,90212.0,90207.0,0.01108561]
[1767411227483,0.01108487,90213.0,90207.0,0.01108561]
[1767411227989,0.01108499,90212.0,90206.0,0.01108573]
[1767411228391,0.01108487,90213.0,90207.0,0.01108561]
[1767411228617,0.01108487,90213.0,90208.0,0.01108549]
[1767411228819,0.01108487,90213.0,90207.0,0.01108561]
[1767411229059,0.01108512,90211.0,90206.0,0.01108573]
[1767411229258,0.01108499,90212.0,90206.0,0.01108573]
[1767411229418,0.01108524,90210.0,90205.0,0.01108585]
[1767411229833,0.01108512,90211.0,90204.0,0.06651584]
[1767411230684,0.01108524,90210.0,90205.0,0.01108585]
[1767411231370,0.01108512,90211.0,90206.0,0.01108573]
[1767411232626,0.01108499,90212.0,90207.0,0.01108561]
[1767411233511,0.01108512,90211.0,90206.0,0.01108573]
[1767411233649,0.01108499,90212.0,90207.0,0.01108561]
[1767411233854,0.01108499,90212.0,90206.0,0.01108573]
[1767411234837,0.01108512,90211.0,90206.0,0.01108573]
[1767411235048,0.01108524,90210.0,90205.0,0.01108585]
[1767411235255,0.01108499,90212.0,90206.0,0.01108573]
[1767411235477,0.01108499,90212.0,90207.0,0.01108561]
[1767411239728,0.01108499,90212.0,90206.0,0.01108573]
[1767411240141,0.01108512,90211.0,90205.0,0.01108585]
[1767411240730,0.01108499,90212.0,90206.0,0.01108573]
[1767411240943,0.02216475,90214.0,90208.0,0.01108549]
[1767411241451,0.01108487,90213.0,90207.0,0.05888541]
[1767411241871,0.0110845,90216.0,90212.0,0.04759984]
[1767411242090,0.04975214,90216.0,90214.0,0.0477998]
[1767411242390,0.06650852,90214.0,90206.0,0.01108573]
[1767411242557,0.01108499,90212.0,90207.0,0.01108561]
[1767411242757,0.01108487,90213.0,90208.0,0.01108549]
[1767411243257,0.01108499,90212.0,90207.0,0.01108561]
[1767411243471,0.01108487,90213.0,90208.0,0.01108549]
[1767411243690,0.01108487,90213.0,90207.0,0.01108561]
[1767411244280,0.01108487,90213.0,90208.0,0.01108549]
[1767411244485,0.01108499,90212.0,90207.0,0.01108561]
[1767411244710,0.01108499,90212.0,90206.0,0.01108573]
[1767411244956,0.01108487,90213.0,90207.0,0.01108561]
[1767411245621,0.01108487,90213.0,90206.0,0.06651398]
[1767411245622,0.01108487,90213.0,90208.0,0.01108549]
[1767411245822,0.01108487,90213.0,90207.0,0.01108561]
[1767411246019,0.01108487,90213.0,90208.0,0.01108549]
[1767411246217,0.01108475,90214.0,90208.0,0.01108549]
[1767411246659,0.01108475,90214.0,90209.0,0.01108536]
[1767411247160,0.01008575,90214.0,90207.0,0.01108561]
[1767411247362,0.01008575,90214.0,90208.0,0.01108549]
[1767411247886,0.01008575,90214.0,90209.0,0.01108536]
[1767411248225,0.01008575,90214.0,90208.0,0.01108549]
[1767411248581,0.01108475,90214.0,90208.0,0.01108549]
[1767411248786,0.01108487,90213.0,90208.0,0.01108549]
[1767411249392,0.01108487,90213.0,90207.0,0.01108561]
[1767411249597,0.01108475,90214.0,90208.0,0.01108549]
[1767411249826,0.01108499,90212.0,90207.0,0.01108561]
[1767411250685,0.01108487,90213.0,90207.0,0.01108561]
[1767411251074,0.01108487,90213.0,90208.0,0.01108549]
[1767411251811,0.01108487,90213.0,90206.0,0.0477998]
[1767411252003,0.01108487,90213.0,90204.0,0.01108598]
[1767411252004,0.04671436,90212.0,90204.0,0.01108598]
[1767411252331,0.04671436,90212.0,90207.0,0.01108561]
[1767411252904,0.04671436,90212.0,90208.0,0.01108549]
[1767411253113,0.05779935,90212.0,90207.0,0.01108561]
[1767411253315,0.05779935,90212.0,90206.0,0.01108573]
[1767411253523,0.04671436,90212.0,90207.0,0.01108561]
[1767411255057,0.05779935,90212.0,90207.0,0.01108561]
[1767411255453,0.04671436,90212.0,90207.0,0.01108561]
[1767411255962,0.01108499,90212.0,90207.0,0.05888541]
[1767411256501,0.01108487,90213.0,90207.0,0.05888541]
[1767411256936,0.01108487,90213.0,90208.0,0.01108549]
[1767411257146,0.01108487,90213.0,90209.0,0.0477998]
[1767411258466,0.01108499,90212.0,90209.0,0.0477998]
[1767411259077,0.01108487,90213.0,90209.0,0.0477998]
[1767411259665,0.06650965,90213.0,90209.0,0.0477998]
[1767411260257,0.01108499,90212.0,90209.0,0.0477998]
[1767411261276,0.01108499,90212.0,90209.0,0.0468008]
[1767411261668,0.01108561,90207.0,90202.0,0.0477998]
[1767411262678,0.01108561,90207.0,90202.0,0.04040278]
[1767411262987,0.01108561,90207.0,90203.0,0.0477998]
[1767411263439,0.05542706,90209.0,90203.0,0.0477998]
[1767411263668,0.01108561,90207.0,90203.0,0.0477998]
[1767411264734,0.01108573,90206.0,90203.0,0.0477998]
[1767411265329,0.06651484,90206.0,90200.0,0.0477998]
[1767411265513,0.0110861,90203.0,90200.0,0.0477998]
[1767411266131,0.06651703,90203.0,90200.0,0.0477998]
[1767411266539,0.01108622,90202.0,90199.0,0.0001516]
[1767411267123,0.01108622,90202.0,90199.0,0.0479514]
[1767411268265,0.01108622,90202.0,90199.0,0.0001516]
[1767411268806,0.06651777,90202.0,90199.0,0.0001516]
[1767411269985,0.0110861,90203.0,90199.0,0.0001516]
[1767411270350,0.0110861,90203.0,90199.0,0.04984155]
[1767411270577,0.06651566,90205.0,90199.0,0.04984155]
[1767411270578,0.01108598,90204.0,90199.0,0.04984155]
[1767411270952,0.01108598,90204.0,90199.0,0.01123819]
[1767411271160,0.0110861,90203.0,90199.0,0.0001516]
[1767411271368,0.06651451,90206.0,90199.0,0.0001516]
[1767411271369,0.01108573,90206.0,90199.0,0.0001516]
[1767411271590,0.01108598,90204.0,90199.0,0.0001516]
[1767411272326,0.01108598,90204.0,90199.0,0.01123819]
[1767411272511,0.01108598,90204.0,90199.0,0.0001516]
[1767411272512,0.0110861,90203.0,90199.0,0.0001516]
[1767411273395,0.01108622,90202.0,90199.0,0.0001516]
[1767411273641,0.0110861,90203.0,90199.0,0.0001516]
[1767411273845,0.01108598,90204.0,90199.0,0.0001516]
[1767411273846,0.06651636,90204.0,90199.0,0.0001516]
[1767411274028,0.01108622,90202.0,90199.0,0.0001516]
[1767411274398,0.01108598,90204.0,90199.0,0.0001516]
[1767411275375,0.01108585,90205.0,90199.0,0.01123819]
[1767411276253,0.01108585,90205.0,90200.0,0.01108647]
[1767411276701,0.01108585,90205.0,90199.0,0.01123819]
[1767411277250,0.01108573,90206.0,90200.0,0.01108647]
[1767411277633,0.01108561,90207.0,90201.0,0.01108635]
[1767411277832,0.01108524,90210.0,90206.0,0.05068895]
[1767411278152,0.01108536,90209.0,90206.0,0.04968995]
[1767411278599,0.01108549,90208.0,90203.0,0.06077605]
[1767411278966,0.01108549,90208.0,90203.0,0.04968995]
[1767411279164,0.01108561,90207.0,90203.0,0.04968995]
[1767411279368,0.01108549,90208.0,90203.0,0.06077605]
[1767411279570,0.01108549,90208.0,90203.0,0.04968995]
[1767411279766,0.01108549,90208.0,90203.0,0.06077605]
[1767411280170,0.01108561,90207.0,90201.0,0.06651756]
[1767411280576,0.01108549,90208.0,90202.0,0.01108622]
[1767411281091,0.01108549,90208.0,90203.0,0.0110861]
[1767411281542,0.01108549,90208.0,90202.0,0.01108622]
[1767411281742,0.01108536,90209.0,90208.0,0.00089902]
[1767411281944,0.01108536,90209.0,90204.0,0.01108598]
[1767411282077,0.01108524,90210.0,90205.0,0.01108585]
[1767411282283,0.01108524,90210.0,90204.0,0.01108598]
[1767411283082,0.01108536,90209.0,90203.0,0.0110861]
[1767411283286,0.01108536,90209.0,90204.0,0.01108598]
[1767411283489,0.01108549,90208.0,90203.0,0.0110861]
[1767411283711,0.01108536,90209.0,90203.0,0.0110861]
[1767411284028,0.01108549,90208.0,90204.0,0.04968995]
[1767411284979,0.01108512,90211.0,90206.0,0.04968995]
[1767411285186,0.01108536,90209.0,90206.0,0.04968995]
[1767411285392,0.01108549,90208.0,90204.0,0.04968995]
[1767411285613,0.01108536,90209.0,90204.0,0.06077593]
[1767411286045,0.01108536,90209.0,90204.0,0.04968995]
[1767411286473,0.01108536,90209.0,90204.0,0.06077593]
[1767411286795,0.01108536,90209.0,90204.0,0.04968995]
[1767411287221,0.01108536,90209.0,90204.0,0.06077593]
[1767411287773,0.01108536,90209.0,90204.0,0.04968995]
[1767411287986,0.01108536,90209.0,90204.0,0.04958995]
[1767411288135,0.01108561,90207.0,90204.0,0.04958995]
[1767411288942,0.05542909,90206.0,90204.0,0.04958995]
[1767411289161,0.06651381,90207.0,90204.0,0.04958995]
[1767411290078,0.05542906,90206.0,90204.0,0.04958995]
[1767411292748,0.0110861,90203.0,90199.0,0.04984155]
[1767411293109,0.01108598,90204.0,90203.0,0.05068895]
[1767411293533,0.01108598,90204.0,90203.0,0.04968995]
[1767411294362,0.06651479,90206.0,90204.0,0.05068895]
[1767411294685,0.06651479,90206.0,90204.0,0.04968995]
[1767411296327,0.066513,90208.0,90204.0,0.04968995]
[1767411296536,0.01108561,90207.0,90206.0,0.000999]
[1767411296738,0.01108561,90207.0,90204.0,0.04968995]
[1767411297365,0.01108598,90204.0,90200.0,0.04968995]
[1767411297568,0.0110861,90203.0,90200.0,0.04968995]
[1767411297896,0.0100871,90203.0,90200.0,0.04968995]
[1767411298168,0.01108598,90204.0,90200.0,0.04968995]
[1767411298320,0.01108585,90205.0,90200.0,0.06077642]
[1767411298517,0.01108598,90204.0,90200.0,0.04968995]
[1767411299583,0.01108585,90205.0,90200.0,0.04968995]
[1767411299801,0.01108585,90205.0,90200.0,0.06077642]
[1767411300432,0.01108598,90204.0,90200.0,0.04968995]
[1767411300631,0.01108585,90205.0,90200.0,0.06077642]
[1767411300874,0.01108585,90205.0,90200.0,0.04968995]
[1767411301051,0.01108585,90205.0,90200.0,0.06077642]
[1767411301573,0.01108549,90208.0,90200.0,0.04968995]
[1767411301769,0.01108549,90208.0,90200.0,0.06077642]
[1767411301770,0.01108585,90205.0,90200.0,0.06077642]
[1767411302172,0.01108573,90206.0,90200.0,0.06077642]
[1767411303417,0.01108598,90204.0,90200.0,0.04968995]
[1767411303709,0.06651296,90208.0,90200.0,0.10512183]
[1767411303946,0.01108573,90206.0,90201.0,0.04622554]
[1767411304320,0.01108573,90206.0,90201.0,0.05731189]
[1767411304722,0.01108585,90205.0,90201.0,0.04622554]
[1767411304924,0.01108573,90206.0,90201.0,0.04622554]
[1767411305331,0.01108585,90205.0,90201.0,0.04622554]
[1767411305831,0.01108573,90206.0,90201.0,0.04622554]
[1767411306034,0.01108561,90207.0,90201.0,0.05731189]
[1767411306392,0.01108585,90205.0,90201.0,0.04622554]
[1767411307327,0.01108573,90206.0,90201.0,0.05731189]
[1767411307735,0.01108585,90205.0,90201.0,0.04622554]
[1767411307934,0.01108573,90206.0,90201.0,0.05731189]
[1767411308137,0.01108573,90206.0,90201.0,0.01108635]
[1767411308557,0.01108561,90207.0,90202.0,0.01108622]
[1767411308838,0.01108573,90206.0,90200.0,0.01108647]
[1767411309056,0.000999,90202.0,90199.0,0.05746373]
[1767411309403,0.01108585,90205.0,90199.0,0.05746373]
[1767411309605,0.01108585,90205.0,90200.0,0.01108647]
[1767411310598,0.01108573,90206.0,90200.0,0.01108647]
[1767411310721,0.01108573,90206.0,90201.0,0.01108635]
[1767411310936,0.01108585,90205.0,90200.0,0.05731201]
[1767411311538,0.01108573,90206.0,90201.0,0.01108635]
[1767411311741,0.01108573,90206.0,90201.0,0.05731189]
[1767411312380,0.01108573,90206.0,90201.0,0.04622554]
[1767411312608,0.01108512,90211.0,90202.0,0.05731176]
[1767411312766,0.01108524,90210.0,90204.0,0.01108598]
[1767411312969,0.01108536,90209.0,90204.0,0.01108598]
[1767411313173,0.01108549,90208.0,90203.0,0.0110861]
[1767411313776,0.01108549,90208.0,90203.0,0.05731164]
[1767411313989,0.01108536,90209.0,90205.0,0.04622554]
[1767411316125,0.01108524,90210.0,90204.0,0.01108598]
[1767411316357,0.01108524,90210.0,90204.0,0.05731152]
[1767411316358,0.01108536,90209.0,90204.0,0.05731152]
[1767411317294,0.01108524,90210.0,90204.0,0.05731152]
[1767411317295,0.06650955,90213.0,90205.0,0.05731139]
[1767411317449,0.01108524,90210.0,90205.0,0.05731139]
[1767411317858,0.01108524,90210.0,90205.0,0.04622554]
[1767411318183,0.01108524,90210.0,90205.0,0.01108585]
[1767411318329,0.01108524,90210.0,90203.0,0.0110861]
[1767411318522,0.01108512,90211.0,90205.0,0.01108585]
[1767411319152,0.06651047,90212.0,90206.0,0.01108573]
[1767411319355,0.01108463,90215.0,90209.0,0.01108536]
[1767411320139,0.02232294,90214.0,90209.0,0.01108536]
[1767411320333,0.01123819,90214.0,90209.0,0.01108536]
[1767411320493,0.01123819,90214.0,90210.0,0.01108524]
[1767411320699,0.02216377,90222.0,90215.0,0.01108463]
[1767411320920,0.02216377,90222.0,90217.0,0.04622554]
[1767411321123,0.01108,90222.0,90217.0,0.05730992]
[1767411321304,0.01108,90222.0,90218.0,0.01108426]
[1767411321506,0.01108,90222.0,90218.0,0.01008526]
[1767411321699,0.01108,90222.0,90218.0,0.01108426]
[1767411322139,0.01108,90222.0,90217.0,0.01108438]
[1767411322319,0.02216377,90222.0,90217.0,0.01108438]
[1767411322658,0.01108,90222.0,90215.0,0.06650733]
[1767411322794,0.01108,90222.0,90218.0,0.01108426]
[1767411323211,0.02216377,90222.0,90216.0,0.0110845]
[1767411323565,0.01108389,90221.0,90216.0,0.0110845]
[1767411323789,0.01108389,90221.0,90215.0,0.01108463]
[1767411324026,0.01108389,90221.0,90216.0,0.0110845]
[1767411324161,0.01108389,90221.0,90215.0,0.01108463]
[1767411324363,0.01108389,90221.0,90215.0,0.05731017]
[1767411324597,0.01108389,90221.0,90216.0,0.0110845]
[1767411324799,0.01108389,90221.0,90215.0,0.05731017]
[1767411324957,0.01108401,90220.0,90215.0,0.04622554]
[1767411325171,0.01108401,90220.0,90215.0,0.05731017]
[1767411325802,0.01108401,90220.0,90215.0,0.04622554]
[1767411326146,0.01108413,90219.0,90215.0,0.04622554]
[1767411327408,0.01108413,90219.0,90214.0,0.01108475]
[1767411328509,0.01108426,90218.0,90212.0,0.01108499]
[1767411328725,0.01108426,90218.0,90213.0,0.01108487]
[1767411328897,0.01108413,90219.0,90213.0,0.01108487]
[1767411329091,0.01108426,90218.0,90213.0,0.01108487]
[1767411330487,0.01108413,90219.0,90214.0,0.01108475]
[1767411330688,0.01108401,90220.0,90215.0,0.01108463]
[1767411331279,0.01108401,90220.0,90214.0,0.01108475]
[1767411331489,0.01108389,90221.0,90216.0,0.0110845]
[1767411331697,0.01108401,90220.0,90214.0,0.01108475]
[1767411332219,0.01108401,90220.0,90215.0,0.01108463]
[1767411332598,0.01108426,90218.0,90213.0,0.01108487]
[1767411333004,0.01108413,90219.0,90214.0,0.01108475]
[1767411333739,0.01108401,90220.0,90214.0,0.01108475]
[1767411334370,0.01108413,90219.0,90214.0,0.01108475]
[1767411334768,0.01108413,90219.0,90212.0,0.05931418]
[1767411334980,0.01108426,90218.0,90213.0,0.01108487]
[1767411336170,0.01108413,90219.0,90214.0,0.01108475]
[1767411336550,0.01108438,90217.0,90212.0,0.05931418]
[1767411336761,0.01108426,90218.0,90213.0,0.01108487]
[1767411337166,0.01108413,90219.0,90214.0,0.01108475]
[1767411337572,0.0664991,90222.0,90214.0,0.01108475]
[1767411337755,0.04596485,90220.0,90213.0,0.03888854]
[1767411338575,0.04596485,90220.0,90217.0,0.01108438]
[1767411339029,0.02216377,90222.0,90216.0,0.0110845]
[1767411339411,0.01108,90222.0,90218.0,0.01108426]
[1767411339574,0.01108,90222.0,90217.0,0.01108438]
[1767411339774,0.01108,90222.0,90218.0,0.01108426]
[1767411340092,0.01108,90222.0,90216.0,0.0110845]
[1767411340298,0.02216377,90222.0,90217.0,0.01108438]
[1767411340487,0.01108,90222.0,90215.0,0.05542289]
[1767411340693,0.01108,90222.0,90218.0,0.01108426]
[1767411340909,0.01108,90222.0,90217.0,0.01108438]
[1767411341229,0.01108,90222.0,90218.0,0.01108426]
[1767411341528,0.01108,90222.0,90216.0,0.0110845]
[1767411341736,0.01108,90222.0,90217.0,0.01108438]
[1767411342084,0.02216377,90222.0,90217.0,0.05872074]
[1767411342289,0.01108,90222.0,90217.0,0.05872074]
[1767411342518,0.01103863,90222.0,90218.0,0.01108426]
[1767411342724,0.0221224,90222.0,90217.0,0.05872074]
[1767411343099,0.02207977,90222.0,90217.0,0.05872074]
[1767411343495,0.02207977,90222.0,90217.0,0.04763636]
[1767411344639,0.01108401,90220.0,90217.0,0.04763636]
[1767411345012,0.06650453,90220.0,90217.0,0.04763636]
[1767411345208,0.05542111,90219.0,90217.0,0.04763636]
[1767411345433,0.06650453,90220.0,90217.0,0.04763636]
[1767411346309,0.01108426,90218.0,90213.0,0.01108487]
[1767411346508,0.01108413,90219.0,90214.0,0.01108475]
[1767411346725,0.01108413,90219.0,90214.0,0.05872111]
[1767411346944,0.01108426,90218.0,90214.0,0.04763636]
[1767411347186,0.01108413,90219.0,90214.0,0.04763636]
[1767411347397,0.01108426,90218.0,90214.0,0.04763636]
[1767411347531,0.01108413,90219.0,90214.0,0.04763636]
[1767411347949,0.01108438,90217.0,90214.0,0.04763636]
[1767411348148,0.01108413,90219.0,90214.0,0.04763636]
[1767411348149,0.01108426,90218.0,90214.0,0.04763636]
[1767411348623,0.06650453,90220.0,90215.0,0.01108463]
[1767411348834,0.01108413,90219.0,90216.0,0.04763636]
[1767411349802,0.010996,90222.0,90213.0,0.01108487]
[1767411349803,0.01108377,90222.0,90220.0,0.04763636]
[1767411350004,0.01108364,90223.0,90222.0,0.04763636]
[1767411350581,0.01108377,90222.0,90217.0,0.05872074]
[1767411351026,0.02216377,90222.0,90217.0,0.04763636]
[1767411351164,0.02216377,90222.0,90217.0,0.05872074]
[1767411351364,0.01108389,90221.0,90217.0,0.04763636]
[1767411351564,0.02216377,90222.0,90217.0,0.04763636]
[1767411352002,0.01108389,90221.0,90217.0,0.04763636]
[1767411352348,0.06650448,90220.0,90217.0,0.04763636]
[1767411352638,0.01108463,90215.0,90212.0,0.04763636]
[1767411352828,0.05542661,90210.0,90207.0,0.04763636]
[1767411353032,0.06651187,90210.0,90207.0,0.04763636]
[1767411353233,0.02216573,90209.0,90207.0,0.04763636]
[1767411353437,0.05541604,90210.0,90209.0,0.04763636]
[1767411353593,0.01108524,90210.0,90209.0,0.04763636]
[1767411353794,0.06651055,90212.0,90209.0,0.04763636]
[1767411355045,0.05542608,90211.0,90209.0,0.04763636]
[1767411355357,0.02216334,90211.0,90209.0,0.04763636]
[1767411356678,0.06651055,90212.0,90209.0,0.04763636]
[1767411358658,0.05542611,90211.0,90209.0,0.04763636]
[1767411359613,0.01108475,90214.0,90209.0,0.04763636]
[1767411359815,0.01108524,90210.0,90207.0,0.0472381]
[1767411359942,0.01108512,90211.0,90207.0,0.0472381]
[1767411360307,0.01108524,90210.0,90207.0,0.0472381]
[1767411360907,0.01108512,90211.0,90207.0,0.0472381]
[1767411361063,0.01008624,90210.0,90207.0,0.0472381]
[1767411361271,0.06551286,90210.0,90207.0,0.0472381]
[1767411361599,0.01008624,90210.0,90207.0,0.0472381]
[1767411362756,0.06651157,90210.0,90207.0,0.0472381]
[1767411362958,0.01108512,90211.0,90206.0,0.01108]
[1767411363773,0.01108536,90209.0,90206.0,0.01108]
[1767411363973,0.0665119,90210.0,90206.0,0.01108]
[1767411364174,0.01108536,90209.0,90206.0,0.010081]
[1767411364416,0.0665122,90209.0,90206.0,0.010081]